fUSD/lending_fUSD_20240222
["ID","MTS","AMOUNT","RATE_DAILY","PERIOD"]
[314880911,1708613438393,-1305.7,0.0002978,2]
[314880912,1708613438417,-622.93493505,0.0002978,2]
[314880913,1708613438428,-1018.91138684,0.0002978,2]
[314880914,1708613438446,-18598.43035417,0.0002978,2]
[314880915,1708613438457,-399.37201755,0.0002978,2]
[314880916,1708613438469,-750.15053776,0.0002978,2]
[314880917,1708613438489,-9015.98762147,0.0002978,2]
[314880918,1708613438500,-2381.08649596,0.0002978,2]
[314880919,1708613438512,-142616.59746746,0.0002978,2]
[314880920,1708613438521,-30182.1659,0.0002978,2]
[314880921,1708613438530,-100000.0,0.0002978,2]
[314880922,1708613438539,-912.447,0.0002978,2]
[314880923,1708613438548,-176.73467074,0.0002978,2]
[314880924,1708613438557,-164.50273427,0.0002978,2]
[314880925,1708613438566,-155.0,0.0002978,2]
[314880926,1708613438575,-161.90398346,0.0002978,2]
[314880927,1708613438584,-290.3828794,0.0002978,2]
[314880928,1708613438594,-399.58508054,0.0002978,2]
[314880929,1708613438603,-1134.19,0.0002979,2]
[314880930,1708613438612,-1365.98,0.00029835,2]
[314880931,1708613438621,-221.69763126,0.00029878,2]
[314880932,1708613438631,-369.0993624,0.00029878,2]
[314880933,1708613438640,-26452.28097841,0.00029879,2]
[314880934,1708613438649,-300.0,0.00029879,2]
[314880935,1708613438658,-300.0,0.00029879,2]
[314880936,1708613438667,-300.0,0.00029879,2]
[314880937,1708613438677,-300.0,0.00029879,2]
[314880938,1708613438686,-354.23257489,0.00029879,2]
[314880939,1708613438696,-710064.69779391,0.0002988,2]
[314880940,1708613438707,-262127.94904129,0.0002988,2]
[314880941,1708613438719,-739.72299348,0.0002988,2]
[314880942,1708613438730,-1788.25695,0.0002988,2]
[314880943,1708613438741,-729.82228752,0.0002988,2]
[314880949,1708613439048,-56771.6287404,0.0002988,2]
[314880951,1708613439076,-51190.0,0.0002988,2]
[314880953,1708613439091,-9869.94857953,0.0002988,2]
[314880975,1708613439298,-3466.66028671,0.0002988,2]
[314881125,1708613440854,-387.29801474,0.0002988,2]
[314881128,1708613440866,-70713.98908788,0.0002988,2]
[314881174,1708613441321,-43369.94756528,0.0002988,2]
[314881180,1708613441370,-2226.24373902,0.0002988,2]
[314881182,1708613441384,-654.34829994,0.0002988,2]
[314881186,1708613441413,-298.08559235,0.0002988,2]
[314881188,1708613441428,-2556.925,0.0002988,2]
[314881189,1708613441441,-455.119992,0.0002988,2]
[314881190,1708613441463,-62688.74818065,0.0002988,2]
[314881191,1708613441477,-298905.4757762,0.0002988,2]
[314881192,1708613441490,-2588.875512,0.0002988,2]
[314881193,1708613441517,-3870.3042,0.0002988,2]
[314881194,1708613441530,-2877.53569213,0.0002988,2]
[314881314,1708613442988,-480.03533669,0.0002988,2]
[314881477,1708613444380,-530.05992504,0.0002988,2]
[314881481,1708613444411,-0.00077018,0.0002988,2]
[314881486,1708613444446,-13725.73695326,0.0002988,2]
[314881511,1708613444740,-3582.70593536,0.0002988,2]
[314881516,1708613444807,-1050.87873394,0.0002988,2]
[314881521,1708613444841,-766904.56744545,0.0002988,2]
[314881523,1708613444850,-3273.69971043,0.0002988,2]
[314881525,1708613444859,-2000.0,0.0002988,2]
[314881527,1708613444869,-200.0,0.0002988,2]
[314881529,1708613444878,-15586.0382731,0.00029883,2]
[314881531,1708613444887,-5977.4727608,0.00029883,2]
[314881533,1708613444896,-2126.47621,0.00029883,2]
[314881535,1708613444905,-200083.1066816,0.00029915,2]
[314881537,1708613444915,-24026.4193301,0.00029915,2]
[314881539,1708613444924,-705.4,0.00029939,2]
[314881541,1708613444933,-1134.19,0.00029945,2]
[314881543,1708613444944,-5049.23843104,0.0002996,2]
[314881545,1708613444955,-150.1,0.0003,2]
[314881547,1708613444964,-94900.45122965,0.0003,2]
[314881549,1708613444973,-1000.0,0.0003,3]
[314881551,1708613444983,-1092.0,0.0003,3]
[314881553,1708613444992,-1000.0,0.0003,3]
[314881555,1708613445001,-1000.0,0.0003,3]
[314881557,1708613445010,-536.20007322,0.0003,4]
[314881559,1708613445020,-172.72575497,0.0003,5]
[314881561,1708613445029,-3000.0,0.0003,2]
[314881563,1708613445038,-155.0,0.0003,2]
[314881565,1708613445048,-173.0,0.0003,2]
[314881567,1708613445057,-1000.0,0.0003,2]
[314881569,1708613445066,-987.32,0.00030015,2]
[314881571,1708613445075,-1134.19,0.00030099,2]
[314881573,1708613445084,-705.4,0.00030107,2]
[314881575,1708613445093,-987.32,0.00030167,2]
[314881577,1708613445102,-2000.0,0.00030179,2]
[314881579,1708613445112,-200.0,0.00030179,2]
[314881581,1708613445121,-1181.43277159,0.00030247,2]
[314881583,1708613445130,-155.0,0.0003025,2]
[314881585,1708613445139,-1134.19,0.00030253,2]
[314881587,1708613445149,-705.4,0.00030275,2]
[314881589,1708613445158,-154.49,0.00030281,2]
[314881592,1708613445168,-1369.38831267,0.00030288,2]
[314881594,1708613445180,-987.32,0.0003032,2]
[314881595,1708613445189,-161.90398343,0.00030326,2]
[314881597,1708613445201,-335.68,0.00030393,2]
[314881600,1708613445210,-1134.19,0.00030408,2]
[314881601,1708613445220,-705.4,0.00030443,2]
[314881603,1708613445230,-987.32,0.00030472,2]
[314881606,1708613445239,-261.5699335,0.00030481,2]
[314881607,1708613445249,-200.0,0.00030481,2]
[314881609,1708613445258,-1000.0,0.000305,3]
[314881611,1708613445268,-1134.19,0.00030562,2]
[314881612,1708613445277,-705.4,0.00030611,2]
[314881613,1708613445286,-987.32,0.00030625,2]
[314881614,1708613445295,-405.13,0.00030685,2]
[314881615,1708613445305,-917.7,0.00030685,2]
[314881617,1708613445314,-357.62,0.00030685,2]
[314881619,1708613445323,-643.37,0.00030701,2]
[314881621,1708613445333,-1134.19,0.00030716,2]
[314881623,1708613445343,-987.32,0.00030777,2]
[314881625,1708613445352,-200.0,0.00030785,2]
[314881627,1708613445361,-152.87,0.0003081,2]
[314881629,1708613445370,-1134.19,0.00030871,2]
[314881631,1708613445379,-455.58,0.00030871,2]
[314881633,1708613445388,-161.90398343,0.00030872,2]
[314881634,1708613445398,-153.75,0.00030877,2]
[314881635,1708613445407,-987.32,0.00030929,2]
[314881636,1708613445416,-887.71570874,0.00030956,5]
[314881637,1708613445426,-281.24644805,0.00031,2]
[314881638,1708613445436,-1864.01162733,0.00031,4]
[314881639,1708613445448,-56778.48048332,0.00031,2]
[314881640,1708613445461,-765.964,0.00031,2]
[314881641,1708613445487,-106688.26430672,0.00031,2]
[314881646,1708613446017,-15062.44461952,0.00031,2]
[314881647,1708613446075,-256629.55317455,0.00031,2]
[314881648,1708613446085,-90.87051153,0.00031,3]
[314881649,1708613446133,-739.34999999,0.00031,3]
[314881650,1708613446192,-169.77948848,0.00031,3]
[314881651,1708613446203,-1000.0,0.00031,3]
[314881652,1708613446213,-1000.0,0.00031,3]
[314881653,1708613446222,-1044.0,0.00031,3]
[314881654,1708613446231,-900.0,0.00031,3]
[314881655,1708613446241,-13425.16945533,0.00031,2]
[314881656,1708613446254,-53003.83371284,0.00031,2]
[314881657,1708613446264,-168113.95,0.00031,30]
[314881658,1708613446278,-152.87,0.00031016,2]
[314881659,1708613446287,-1134.19,0.00031025,2]
[314881660,1708613446297,-389.0,0.00031045,5]
[314881661,1708613446307,-987.32,0.00031082,2]
[314881662,1708613446317,-1134.19,0.0003118,2]
[314881663,1708613446327,-1000.0,0.00031194,2]
[314881664,1708613446338,-165.24,0.00031196,2]
[314881665,1708613446348,-234.43357895,0.00031208,4]
[314881666,1708613446357,-152.87,0.00031221,2]
[314881667,1708613446367,-987.32,0.00031234,2]
[314881668,1708613446377,-1134.19,0.00031334,2]
[314881669,1708613446388,-987.32,0.00031386,2]
[314881670,1708613446399,-186.13,0.00031395,10]
[314881671,1708613446409,-208.0,0.00031401,8]
[314881672,1708613446420,-161.90398343,0.00031417,3]
[314881673,1708613446430,-152.87,0.00031426,2]
[314881674,1708613446441,-152.0,0.00031469,3]
[314881675,1708613446453,-1365.98,0.00031479,2]
[314881676,1708613446464,-1134.19,0.00031488,2]
[314881677,1708613446476,-3280.0,0.00031507,2]
[314881678,1708613446487,-987.32,0.00031539,2]
[314881679,1708613446498,-887.71570874,0.00031594,5]
[314881680,1708613446510,-2335.13715985,0.00031605,4]
[314881681,1708613446521,-152.87,0.00031632,2]
[314881682,1708613446532,-1134.19,0.00031643,2]
[314881683,1708613446544,-160.0,0.00031681,2]
[314881684,1708613446555,-987.32,0.00031691,2]
[314881685,1708613446566,-200.0,0.00031795,2]
[314881686,1708613446577,-1134.19,0.00031797,2]
[314881687,1708613446588,-822.97735197,0.00031815,2]
[314881688,1708613446599,-152.87,0.00031837,2]
[314881689,1708613446609,-335.68,0.0003184,2]
[314881690,1708613446621,-987.32,0.00031843,2]
[314881691,1708613446632,-154.01,0.00031859,2]
[314881692,1708613446642,-282.0,0.000319,4]
[314881693,1708613446654,-1134.19,0.00031951,2]
[314881694,1708613446664,-455.58,0.00031963,2]
[314881695,1708613446675,-161.90398343,0.00031963,3]
[314881696,1708613446685,-641.22,0.00031987,2]
[314881697,1708613446697,-161.23468206,0.00031991,3]
[314881698,1708613446711,-2000.0,0.00032,5]
[314881699,1708613446726,-1000.0,0.00032,3]
[314881700,1708613446736,-152.87,0.00032043,2]
[314881701,1708613446746,-150.0,0.00032055,2]
[314881702,1708613446757,-344.29,0.00032055,2]
[314881703,1708613446767,-423.57,0.00032055,2]
[314881704,1708613446777,-412.88,0.00032055,2]
[314881705,1708613446787,-1500.0,0.00032058,2]
[314881706,1708613446798,-3002.0,0.000321,3]
[314881707,1708613446808,-23118.0,0.000321,3]
[314881708,1708613446818,-1134.19,0.00032106,2]
[314881709,1708613446828,-3000.0,0.0003214,2]
[314881710,1708613446838,-2811.32,0.0003222,2]
[314881711,1708613446849,-160.0,0.00032229,2]
[314881712,1708613446859,-887.71570874,0.00032232,5]
[314881713,1708613446869,-152.87,0.00032248,2]
[314881714,1708613446879,-1134.19,0.0003226,2]
[314881715,1708613446890,-155.0,0.000323,4]
[314881716,1708613446900,-200.0,0.00032339,2]
[314881717,1708613446910,-800.0,0.00032339,2]
[314881718,1708613446921,-200000.0,0.00032343,7]
[314881719,1708613446931,-152.87,0.00032453,2]
[314881720,1708613446941,-20320.06357193,0.000325,2]
[314881725,1708614098895,750.0,0.00025,3]
[314881734,1708614503726,612.52,0.00024762,2]
[314881762,1708614632222,-230.58774355,0.00026194,2]
[314881764,1708614632232,-1935.40943962,0.00026194,2]
[314881765,1708614632242,-3049.23440343,0.00026195,2]
[314881766,1708614632251,-154.27822877,0.000262,2]
[314881767,1708614632260,-1150.86518463,0.000263,2]
[314881768,1708614632340,-2494.05752677,0.000263,2]
[314881769,1708614632349,-150.0,0.00026539,2]
[314881770,1708614632358,-23900.0,0.00026541,2]
[314881771,1708614632368,-4135.87,0.00026541,2]
[314881772,1708614632378,-881.27,0.00026584,2]
[314881773,1708614632387,-200.0,0.0002668,2]
[314881774,1708614632396,-167.84,0.00026722,2]
[314881775,1708614632405,-1449.35,0.00026798,2]
[314881776,1708614632414,-150.0,0.00026809,2]
[314881777,1708614632424,-250.0,0.0002681,2]
[314881778,1708614632434,-800.0,0.00027,3]
[314881779,1708614632443,-612.52,0.00027026,2]
[314881780,1708614632453,-406.12,0.00027028,2]
[314881781,1708614632462,-499.99,0.00027028,2]
[314881782,1708614632471,-389.62,0.00027069,2]
[314881783,1708614632481,-1887.18,0.00027069,2]
[314881784,1708614632490,-2000.0,0.00027104,2]
[314881785,1708614632499,-5182.83934433,0.000272,2]
[314881786,1708614632512,-288.93831911,0.000272,2]
[314881787,1708614632522,-327.02,0.00027397,2]
[314881788,1708614632534,-327.02,0.00027556,2]
[314881789,1708614632543,-250.0,0.0002757,2]
[314881790,1708614632553,-838.95,0.00027701,2]
[314881791,1708614632562,-194.34,0.00027709,2]
[314881793,1708614632572,-327.02,0.00027714,2]
[314881795,1708614632582,-194.34,0.00027785,2]
[314881797,1708614632591,-50.7686561,0.00027791,2]
[314881799,1708614632604,-949.2313439,0.00027791,2]
[314881800,1708614632615,-194.34,0.00027861,2]
[314881801,1708614632625,-322.75672676,0.00027872,2]
[314881802,1708614632654,-4.26327324,0.00027872,2]
[314881803,1708614632663,-194.34,0.00027937,2]
[314881804,1708614632742,-155.0,0.00027998,2]
[314881805,1708614632753,-337.86459085,0.00028,2]
[314881806,1708614632773,-1061.9004797,0.00028,2]
[314881807,1708614632792,-1679.06194262,0.00028,2]
[314881808,1708614632804,-340.4359208,0.00028,2]
[314881809,1708614632816,-103144.42737144,0.00028,2]
[314881810,1708614632828,-13829.8592536,0.00028,2]
[314881812,1708614638146,-416.9427916,0.00026193,2]
[314881813,1708614638155,-2647.11,0.00027901,2]
[314881814,1708614638164,-707000.64500231,0.00028,2]
[314881815,1708614638176,-259827.81692952,0.00028,2]
[314881816,1708614638185,-194.34,0.00028013,2]
[314881817,1708614638194,-327.02,0.0002803,2]
[314881818,1708614638204,-194.34,0.00028089,2]
[314881819,1708614638214,-194.34,0.00028165,2]
[314881820,1708614638223,-327.02,0.00028189,2]
[314881821,1708614638233,-881.27,0.00028228,2]
[314881822,1708614638242,-181.80211177,0.00028241,2]
[314881823,1708614638255,-12.53788823,0.00028241,2]
[314881824,1708614638264,-194.34,0.00028317,2]
[314881825,1708614638273,-153.17,0.00028341,2]
[314881826,1708614638282,-327.02,0.00028347,2]
[314881827,1708614638292,-193.6461621,0.00028393,2]
[314881828,1708614638328,-0.6938379,0.00028393,2]
[314881829,1708614638337,-194.34,0.00028469,2]
[314881830,1708614638347,-157.49,0.00028477,2]
[314881831,1708614638356,-167.84,0.00028503,2]
[314881832,1708614638365,-103.06917772,0.00028505,2]
[314881833,1708614638377,-223.95082228,0.00028505,2]
[314881834,1708614638386,-194.34,0.00028545,2]
[314881835,1708614638395,-167.99,0.0002862,2]
[314881836,1708614638404,-194.34,0.00028621,2]
[314881837,1708614638413,-327.02,0.00028664,2]
[314881838,1708614638422,-610.38,0.00028694,2]
[314881839,1708614638431,-194.34,0.00028697,2]
[314881840,1708614638440,-167.99,0.00028771,2]
[314881841,1708614638450,-194.34,0.00028773,2]
[314881842,1708614638459,-327.02,0.00028822,2]
[314881843,1708614638468,-194.34,0.00028849,2]
[314881844,1708614638477,-167.99,0.00028922,2]
[314881853,1708614638580,-194.34,0.00028925,2]
[314881854,1708614638635,-328.92526871,0.00029,2]
[314881855,1708614638644,-850.0,0.00029,3]
[314881856,1708614638653,-194.34,0.00029001,2]
[314881857,1708614638661,-167.99,0.00029072,2]
[314881858,1708614638671,-194.34,0.00029077,2]
[314881859,1708614638680,-325.41,0.00029131,2]
[314881860,1708614638688,-194.34,0.00029153,2]
[314881861,1708614638699,-167.99,0.00029223,2]
[314881862,1708614638708,-612.52,0.00029289,2]
[314881863,1708614638717,-167.99,0.00029374,2]
[314881864,1708614638727,-167.99,0.00029524,2]
[314881865,1708614638736,-24293.69519351,0.0002958,2]
[314881866,1708614638807,-250.0,0.0002958,2]
[314881867,1708614638819,-6955.91214329,0.0002958,2]
[314881868,1708614638831,-4881.57462516,0.0002958,2]
[314881869,1708614638843,-1004.01266038,0.0002958,2]
[314881870,1708614638886,-10291.91669168,0.0002958,2]
[314881871,1708614638911,-569.41131474,0.0002958,2]
[314881872,1708614638936,-373.48115516,0.0002958,2]
[314881885,1708614641395,-1200.79954586,0.0002958,2]
[314881886,1708614641408,-770.50567331,0.0002958,2]
[314881894,1708614643212,-5068.95120872,0.0002958,2]
[314881895,1708614643225,-6985.44573727,0.0002958,2]
[314881896,1708614643327,-879.15,0.0002958,2]
[314881897,1708614643340,-35364.15545148,0.0002958,2]
[314881898,1708614643391,-423.35263653,0.0002958,2]
[314881899,1708614643424,-687.63596291,0.0002958,2]
[314881900,1708614643436,-1000.0,0.0002958,2]
[314881901,1708614643447,-167.99,0.00029675,2]
[314881902,1708614643460,-27999.3321725,0.0002968,2]
[314881903,1708614643588,-2426.94144,0.0002968,2]
[314881905,1708614643607,-3061.9,0.0002968,2]
[314881906,1708614643625,-500.0,0.0002968,2]
[314881913,1708614646202,-1125.387,0.0002968,2]
[314881914,1708614646215,-4012.94511263,0.0002968,2]
[314881915,1708614646488,-494.85273259,0.0002968,2]
[314881917,1708615053385,900.0,0.0002,2]
[314881919,1708615265787,1200.0,0.0002503,2]
[314881920,1708615265823,8800.0,0.0002503,2]
[314881922,1708615407067,-230.58774355,0.00026935,2]
[314881923,1708615407099,-3049.23440343,0.00026935,2]
[314881924,1708615407131,-1826.18,0.00026935,2]
[314881925,1708615407163,-1819.5,0.00026935,2]
[314881926,1708615407194,-1818.89,0.00026935,2]
[314881927,1708615407224,-1825.65,0.00026935,2]
[314881928,1708615407253,-1805.7,0.00026935,2]
[314881929,1708615407282,-1780.21,0.00026935,2]
[314881932,1708615533178,5000.0,0.00025032,2]
[314881940,1708615831449,-154.27822877,0.00026164,2]
[314881941,1708615831460,-3049.23440343,0.00026263,2]
[314881942,1708615831470,-543.51,0.00026264,2]
[314881943,1708615831479,-1785.1,0.00026937,2]
[314881944,1708615831490,-250.0,0.00027895,2]
[314881945,1708615831500,-2205.92,0.00027955,2]
[314881946,1708615831509,-208.0,0.00027976,2]
[314881947,1708615831519,-688.3,0.00027988,2]
[314881948,1708615831529,-775.59,0.00028099,2]
[314881949,1708615831538,-6086.11,0.00028108,2]
[314881950,1708615831552,-250.0,0.0002813,2]
[314881951,1708615831561,-2000.0,0.00028136,2]
[314881952,1708615831571,-203.06,0.00028151,2]
[314881953,1708615831581,-152.96,0.0002825,2]
[314881954,1708615831590,-163.53,0.00028281,2]
[314881955,1708615831599,-311.7,0.00028329,2]
[314881956,1708615831609,-159.03,0.00028417,2]
[314881957,1708615831618,-699.12,0.00028454,2]
[314881958,1708615831628,-543.51,0.00028527,2]
[314881959,1708615831637,-152.96,0.00028619,2]
[314881960,1708615831647,-163.53,0.00028771,2]
[314881961,1708615831656,-152.96,0.00028987,2]
[314881962,1708615831665,-8204.12277466,0.00029,2]
[314881963,1708615831684,-795.87722534,0.00029,2]
[314881964,1708615831693,-7063.68908016,0.00029,2]
[314881965,1708615831702,-165.24,0.00029015,2]
[314881966,1708615831712,-1832.02,0.00029092,2]
[314881967,1708615831722,-1827.62,0.00029115,2]
[314881968,1708615831731,-1783.9,0.00029119,2]
[314881969,1708615831741,-300.0,0.00029121,2]
[314881971,1708615831751,-692.34,0.00029121,2]
[314881973,1708615831760,-1838.69,0.00029152,2]
[314881975,1708615831770,-163.53,0.00029261,2]
[314881977,1708615831779,-152.96,0.00029355,2]
[314881978,1708615831789,-1000.0,0.0002948,2]
[314881980,1708615831800,-15745.573689,0.0002948,2]
[314881982,1708615831813,-1350.1,0.0002948,2]
[314881985,1708615831826,-13664.867211,0.0002948,2]
[314881987,1708615831839,-2500.0,0.0002948,2]
[314881989,1708615831849,-2284.4868258,0.0002948,2]
[314881990,1708615831899,-169.0752742,0.0002948,2]
[314881991,1708615831909,-913.69126026,0.000295,2]
[314881994,1708615837436,-7154.7847322,0.000295,2]
[314881995,1708615837451,-353.27873282,0.00029578,2]
[314881996,1708615837465,-475.3658868,0.00029578,2]
[314881997,1708615837478,-289.25656262,0.00029578,2]
[314881998,1708615837492,-1000.0,0.00029579,2]
[314881999,1708615837505,-42055.31408556,0.0002958,2]
[314882000,1708615837549,-23360.1625892,0.0002958,2]
[314882052,1708615845430,-899.36254085,0.0002958,2]
[314882054,1708615845442,-3775.02095279,0.0002958,2]
[314882055,1708615845453,-4608.67713029,0.0002958,2]
[314882056,1708615845487,-3768.51518885,0.0002958,2]
[314882057,1708615845501,-2571.25,0.0002958,2]
[314882058,1708615845513,-1088.0,0.0002958,2]
[314882059,1708615845525,-1485.5,0.0002958,2]
[314882060,1708615845613,-502.53383016,0.0002958,2]
[314882061,1708615845780,-438.8069576,0.0002958,2]
[314882062,1708615905917,750.0,0.00025,3]
[314882063,1708616031748,10189.20349108,0.00028,4]
[314882080,1708616516108,280.02,0.00027976,10]
[314882087,1708616951142,-2488.32135787,0.0002617,2]
[314882090,1708616976970,186.13,0.00027401,10]
[314882091,1708616978038,-230.58774355,0.00026168,2]
[314882092,1708616978062,-221.83141858,0.00026169,2]
[314882093,1708616978084,-155.0,0.00026169,2]
[314882094,1708616978107,-560.91304556,0.0002617,2]
[314882095,1708616978129,-2989.961,0.00026171,2]
[314882098,1708617004450,594.24,0.00025362,2]
[314882111,1708617031681,-800.0,0.00027,3]
[314882112,1708617031690,-250.0,0.0002726,2]
[314882113,1708617031699,-9988.35,0.0002741,2]
[314882114,1708617031708,-249.18,0.00027492,2]
[314882115,1708617031717,-6371.71,0.00027492,2]
[314882116,1708617031728,-168.63,0.00027561,2]
[314882117,1708617031737,-683.64,0.00027589,2]
[314882118,1708617031746,-250.0,0.00027608,2]
[314882119,1708617031756,-200.0,0.00027613,2]
[314882120,1708617031765,-2449.27,0.00027625,2]
[314882121,1708617031774,-594.24,0.00027626,2]
[314882122,1708617031784,-150.0,0.00027636,2]
[314882123,1708617031793,-2000.0,0.00027637,2]
[314882124,1708617031802,-1627.26802115,0.00027651,2]
[314882125,1708617031877,-4744.44197885,0.00027651,2]
[314882126,1708617031886,-550.64,0.00027655,2]
[314882127,1708617031895,-154.11,0.00027676,2]
[314882128,1708617031904,-207.97,0.00027712,2]
[314882129,1708617031913,-704.16,0.00027776,2]
[314882130,1708617031922,-6371.71,0.0002781,2]
[314882132,1708617031931,-500.0,0.00027818,2]
[314882134,1708617031940,-500.0,0.0002785,2]
[314882136,1708617031949,-204.88,0.00027901,2]
[314882138,1708617031958,-500.0,0.00027954,2]
[314882140,1708617031967,-462.08802115,0.00027969,2]
[314882143,1708617031989,-5909.62197885,0.00027969,2]
[314882146,1708617031999,-150.0,0.00028,2]
[314882150,1708617032009,-260.001,0.00028,2]
[314882154,1708617032018,-6371.71,0.00028128,2]
[314882159,1708617032027,-154.11,0.00028157,2]
[314882162,1708617032037,-6371.71,0.00028286,2]
[314882165,1708617032046,-582.6,0.00028334,2]
[314882168,1708617032055,-449.36,0.00028409,2]
[314882171,1708617032065,-6371.71,0.00028445,2]
[314882174,1708617032074,-162.95,0.00028471,2]
[314882177,1708617032083,-6371.71,0.00028604,2]
[314882180,1708617032093,-154.11,0.00028637,2]
[314882183,1708617032102,-156.93,0.00028665,2]
[314882186,1708617032111,-177.69,0.000287,2]
[314882188,1708617032121,-6371.71,0.00028763,2]
[314882190,1708617032130,-1200.07702116,0.00028922,2]
[314882192,1708617032143,-505.77657982,0.00028922,2]
[314882198,1708617032182,-4665.85639902,0.00028922,2]
[314882200,1708617032192,-153.75,0.00028951,2]
[314882202,1708617032201,-208.0,0.00028979,2]
[314882204,1708617032210,-28.79947938,0.00029,3]
[314882209,1708617032250,-417.30532202,0.00029,3]
[314882333,1708617037529,-170.13,0.00028534,2]
[314882335,1708617037539,-170.13,0.00028684,2]
[314882336,1708617037549,-403.8951986,0.00029,3]
[314882337,1708617037558,-156.93,0.00029023,2]
[314882338,1708617037567,-154.11,0.00029118,2]
[314882339,1708617037576,-1408.5916966,0.00029129,2]
[314882340,1708617037586,-525.7,0.00029279,2]
[314882341,1708617037595,-362.2911,0.00029279,2]
[314882342,1708617037604,-500.0,0.00029279,2]
[314882343,1708617037613,-468.4307,0.00029279,3]
[314882344,1708617037622,-1000.0,0.00029279,2]
[314882345,1708617037632,-2500.0,0.00029279,2]
[314882346,1708617037641,-873.32813904,0.00029279,4]
[314882347,1708617037650,-3790.34461141,0.0002929,2]
[314882348,1708617037660,-1408.5916966,0.00029359,2]
[314882349,1708617037668,-1549.96992501,0.00029369,2]
[314882350,1708617037678,-354.24902163,0.00029377,2]
[314882351,1708617037688,-230.58774355,0.00029378,2]
[314882352,1708617037697,-155.0,0.00029378,2]
[314882353,1708617037706,-3049.23440343,0.00029378,2]
[314882354,1708617037715,-258.83760792,0.00029379,2]
[314882355,1708617037725,-124705.92670148,0.00029379,2]
[314882356,1708617037740,-262.47512742,0.00029379,2]
[314882357,1708617037767,-6375.05121426,0.00029379,2]
[314882358,1708617037778,-15616.443398,0.00029379,2]
[314882359,1708617037938,-384.925,0.00029379,2]
[314882360,1708617037976,-170.13,0.00028834,2]
[314882361,1708617037986,-462.46372446,0.00029379,2]
[314882362,1708617037998,-2024.7921918,0.00029379,2]
[314882363,1708617038009,-116515.67786808,0.00029379,2]
[314882365,1708617039677,-170.13,0.00028984,2]
[314882366,1708617039687,-170.13,0.00029134,2]
[314882367,1708617039696,-170.13,0.00029284,2]
[314882368,1708617039705,-868.41935251,0.00029379,2]
[314882369,1708617039717,-878.64805214,0.00029379,2]
[314882370,1708617039751,-8486.046757,0.00029379,2]
[314882371,1708617039762,-10812.082,0.00029379,2]
[314882372,1708617039773,-11806.3386,0.00029379,2]
[314882373,1708617039784,-9870.0,0.00029379,2]
[314882374,1708617039796,-9737.05465,0.00029379,2]
[314882375,1708617039807,-5646.18697759,0.00029379,2]
[314882376,1708617039816,-1000.0,0.00029379,2]
[314882377,1708617039826,-500.0,0.00029379,2]
[314882378,1708617039835,-500.0,0.00029379,2]
[314882379,1708617039844,-500.0,0.00029379,2]
[314882380,1708617039853,-500.0,0.00029379,2]
[314882381,1708617039863,-500.0,0.00029379,2]
[314882382,1708617039872,-500.0,0.00029379,2]
[314882383,1708617039882,-500.0,0.00029379,2]
[314882384,1708617039892,-500.0,0.00029379,2]
[314882385,1708617039902,-500.0,0.00029379,2]
[314882386,1708617039913,-500.0,0.00029379,2]
[314882387,1708617039923,-500.0,0.00029379,2]
[314882388,1708617039932,-500.0,0.00029379,2]
[314882389,1708617039941,-236.62233241,0.00029379,2]
[314882390,1708617039953,-263.37766759,0.00029379,2]
[314882391,1708617039962,-500.0,0.00029379,2]
[314882392,1708617039971,-545.14509053,0.00029379,2]